[Event "Titled Tuesday Blitz April 26 Late 2022"]
[White "Dahlgren, James Allen"]
[Black "Martin Barcelo, Carles"]
[WhiteFideId "22256873"]
[BlackFideId "24561444"]
[WhiteElo "2093"]
[BlackElo "1875"]
[Result "0-1"]
[Round "03"]
[TimeControl "180+1"]
[Date "2022.04.26"]
[WhiteClock "0:00:10"]
[BlackClock "0:01:19"]

1. d3 {[%clk 0:03:00]}  d5 {[%clk 0:02:59]} 2. f4 {[%clk 0:03:01]}  c5 {[%clk 0:02:58]} 3. Nf3 {[%clk 0:03:02]}  Nc6 {[%clk 0:02:58]} 4. g3 {[%clk 0:03:02]}  g6 {[%clk 0:02:41]} 5. Bg2 {[%clk 0:03:03]}  Bg7 {[%clk 0:02:41]} 6. O-O {[%clk 0:03:03]}  e6 {[%clk 0:02:39]} 7. Nbd2 {[%clk 0:03:04]}  Nge7 {[%clk 0:02:39]} 8. e4 {[%clk 0:03:05]}  O-O {[%clk 0:02:38]} 9. c4 {[%clk 0:03:05]}  dxe4 {[%clk 0:02:36]} 10. dxe4 {[%clk 0:03:06]}  Nd4 {[%clk 0:02:34]} 11. h3 {[%clk 0:03:03]}  Nec6 {[%clk 0:02:34]} 12. Kh2 {[%clk 0:03:02]}  b6 {[%clk 0:02:31]} 13. Nxd4 {[%clk 0:02:56]}  Nxd4 {[%clk 0:02:31]} 14. e5 {[%clk 0:02:55]}  Rb8 {[%clk 0:02:31]} 15. Ne4 {[%clk 0:02:54]}  Bb7 {[%clk 0:02:30]} 16. Be3 {[%clk 0:02:53]}  Qd7 {[%clk 0:02:26]} 17. Qg4 {[%clk 0:02:27]}  Bxe4 {[%clk 0:02:13]} 18. Bxe4 {[%clk 0:02:28]}  f5 {[%clk 0:02:13]} 19. exf6 {[%clk 0:02:27]}  Bxf6 {[%clk 0:02:13]} 20. Rad1 {[%clk 0:02:24]}  Rbd8 {[%clk 0:02:12]} 21. h4 {[%clk 0:02:02]}  Kh8 {[%clk 0:02:04]} 22. h5 {[%clk 0:02:00]}  gxh5 {[%clk 0:02:05]} 23. Qxh5 {[%clk 0:01:57]}  Rg8 {[%clk 0:01:59]} 24. Rh1 {[%clk 0:01:43]}  Qg7 {[%clk 0:01:54]} 25. g4 {[%clk 0:01:30]}  Nf5 {[%clk 0:01:35]} 26. Bxf5 {[%clk 0:01:08]}  exf5 {[%clk 0:01:33]} 27. g5 {[%clk 0:01:05]}  Bxb2 {[%clk 0:01:31]} 28. Kg3 {[%clk 0:00:52]}  Rge8 {[%clk 0:01:29]} 29. Rxd8 {[%clk 0:00:41]}  Rxd8 {[%clk 0:01:29]} 30. g6 {[%clk 0:00:41]}  h6 {[%clk 0:01:29]} 31. Qxf5 {[%clk 0:00:27]}  Rg8 {[%clk 0:01:29]} 32. Kf3 {[%clk 0:00:15]}  Qxg6 {[%clk 0:01:27]} 33. Qxg6 {[%clk 0:00:14]}  Rxg6 {[%clk 0:01:28]} 34. f5 {[%clk 0:00:14]}  Rd6 {[%clk 0:01:23]} 35. Ke4 {[%clk 0:00:12]}  Kg7 {[%clk 0:01:21]} 36. Rg1+ {[%clk 0:00:11]}  Kf7 {[%clk 0:01:22]} 37. Bf4 {[%clk 0:00:10]}  Rd4+ {[%clk 0:01:22]} 38. Ke5 {[%clk 0:00:10]}  Rd1+ {[%clk 0:01:19]} 0-1


[Site "https://www.chess.com"]

[Event "Titled Tuesday Blitz April 26 Late 2022"]
[White "De Souza, Cristiano Gomes"]
[Black "Proudian, Armen"]
[WhiteFideId "2151758"]
[BlackFideId "2130734"]
[WhiteElo "2068"]
[BlackElo "2380"]
[Result "1/2-1/2"]
[Round "03"]
[TimeControl "180+1"]
[Date "2022.04.26"]
[WhiteClock "0:00:53"]
[BlackClock "0:00:03"]

1. d4 {[%clk 0:02:59]}  Nf6 {[%clk 0:02:59]} 2. c4 {[%clk 0:02:59]}  e6 {[%clk 0:03:00]} 3. Nf3 {[%clk 0:02:59]}  d5 {[%clk 0:02:59]} 4. Nc3 {[%clk 0:02:59]}  Bb4 {[%clk 0:03:00]} 5. Bg5 {[%clk 0:02:57]}  h6 {[%clk 0:03:00]} 6. Bxf6 {[%clk 0:02:57]}  Qxf6 {[%clk 0:03:01]} 7. Rc1 {[%clk 0:02:58]}  O-O {[%clk 0:03:00]} 8. a3 {[%clk 0:02:58]}  Bxc3+ {[%clk 0:02:57]} 9. Rxc3 {[%clk 0:02:59]}  Nc6 {[%clk 0:02:58]} 10. e3 {[%clk 0:02:59]}  Ne7 {[%clk 0:02:57]} 11. Qc2 {[%clk 0:02:58]}  c6 {[%clk 0:02:55]} 12. Ne5 {[%clk 0:02:57]}  Ng6 {[%clk 0:02:49]} 13. Nxg6 {[%clk 0:02:56]}  fxg6 {[%clk 0:02:50]} 14. Bd3 {[%clk 0:02:56]}  g5 {[%clk 0:02:50]} 15. O-O {[%clk 0:02:56]}  Bd7 {[%clk 0:02:42]} 16. b4 {[%clk 0:02:52]}  h5 {[%clk 0:02:28]} 17. b5 {[%clk 0:02:51]}  h4 {[%clk 0:02:27]} 18. f4 {[%clk 0:02:39]}  g4 {[%clk 0:02:22]} 19. a4 {[%clk 0:02:32]}  g5 {[%clk 0:02:15]} 20. Qd2 {[%clk 0:02:26]}  gxf4 {[%clk 0:02:13]} 21. Rxf4 {[%clk 0:02:25]}  Qg5 {[%clk 0:02:13]} 22. Rxf8+ {[%clk 0:02:20]}  Rxf8 {[%clk 0:02:14]} 23. Rc1 {[%clk 0:02:17]}  h3 {[%clk 0:02:04]} 24. Rf1 {[%clk 0:02:13]}  Rxf1+ {[%clk 0:02:00]} 25. Bxf1 {[%clk 0:02:10]}  e5 {[%clk 0:01:57]} 26. cxd5 {[%clk 0:02:08]}  cxd5 {[%clk 0:01:57]} 27. Qf2 {[%clk 0:02:04]}  exd4 {[%clk 0:01:48]} 28. exd4 {[%clk 0:02:03]}  Bf5 {[%clk 0:01:48]} 29. gxh3 {[%clk 0:02:00]}  gxh3+ {[%clk 0:01:37]} 30. Qg3 {[%clk 0:01:59]}  Qxg3+ {[%clk 0:00:50]} 31. hxg3 {[%clk 0:01:59]}  b6 {[%clk 0:00:50]} 32. Kh2 {[%clk 0:01:55]}  Bc2 {[%clk 0:00:46]} 33. Bxh3 {[%clk 0:01:53]}  Bxa4 {[%clk 0:00:42]} 34. Be6+ {[%clk 0:01:53]}  Kg7 {[%clk 0:00:42]} 35. Bxd5 {[%clk 0:01:53]}  Bxb5 {[%clk 0:00:43]} 36. Kg2 {[%clk 0:01:52]}  Kf6 {[%clk 0:00:43]} 37. Kf2 {[%clk 0:01:52]}  Kf5 {[%clk 0:00:39]} 38. Bb7 {[%clk 0:01:42]}  a5 {[%clk 0:00:38]} 39. Ke3 {[%clk 0:01:36]}  Kg4 {[%clk 0:00:38]} 40. d5 {[%clk 0:01:36]}  Kf5 {[%clk 0:00:20]} 41. Kd4 {[%clk 0:01:36]}  a4 {[%clk 0:00:20]} 42. Bc8+ {[%clk 0:01:27]}  Kf6 {[%clk 0:00:19]} 43. Kc3 {[%clk 0:01:23]}  Ke5 {[%clk 0:00:18]} 44. Bb7 {[%clk 0:01:20]}  Bd7 {[%clk 0:00:17]} 45. Kb4 {[%clk 0:01:19]}  b5 {[%clk 0:00:11]} 46. Ba8 {[%clk 0:01:14]}  Kd6 {[%clk 0:00:11]} 47. Bb7 {[%clk 0:01:06]}  Be8 {[%clk 0:00:08]} 48. Ba8 {[%clk 0:01:05]}  Bd7 {[%clk 0:00:05]} 49. Bb7 {[%clk 0:01:05]}  Kc7 {[%clk 0:00:06]} 50. Ba8 {[%clk 0:01:05]}  Be8 {[%clk 0:00:04]} 51. g4 {[%clk 0:01:04]}  Kd6 {[%clk 0:00:03]} 52. g5 {[%clk 0:01:03]}  Bf7 {[%clk 0:00:02]} 53. Bc6 {[%clk 0:00:59]}  Bxd5 {[%clk 0:00:02]} 54. Bxb5 {[%clk 0:00:59]}  Ke6 {[%clk 0:00:02]} 55. Bd3 {[%clk 0:00:57]}  Bc6 {[%clk 0:00:02]} 56. Ka3 {[%clk 0:00:54]}  Ke5 {[%clk 0:00:02]} 57. Kb4 {[%clk 0:00:54]}  Be8 {[%clk 0:00:02]} 58. Ka3 {[%clk 0:00:53]}  Kf4 {[%clk 0:00:02]} 59. g6 {[%clk 0:00:53]}  Bxg6 {[%clk 0:00:02]} 60. Bxg6 {[%clk 0:00:52]}  Ke5 {[%clk 0:00:03]} 61. Be8 {[%clk 0:00:52]}  Kd6 {[%clk 0:00:03]} 62. Bxa4 {[%clk 0:00:53]} 1/2-1/2


[Site "https://www.chess.com"]

[Event "Titled Tuesday Blitz April 26 Late 2022"]
[White "Deac, Bogdan-Daniel"]
[Black "Makarian, Rudik"]
[WhiteFideId "1226380"]
[BlackFideId "44105681"]
[WhiteElo "2648"]
[BlackElo "2388"]
[Result "1-0"]
[Round "03"]
[TimeControl "180+1"]
[Date "2022.04.26"]
[WhiteClock "0:00:11"]
[BlackClock "0:00:02"]

1. d4 {[%clk 0:03:00]}  Nf6 {[%clk 0:02:58]} 2. c4 {[%clk 0:03:01]}  e6 {[%clk 0:02:55]} 3. Nf3 {[%clk 0:03:01]}  c5 {[%clk 0:02:56]} 4. g3 {[%clk 0:03:00]}  Qa5+ {[%clk 0:02:55]} 5. Nbd2 {[%clk 0:02:53]}  cxd4 {[%clk 0:02:51]} 6. Nxd4 {[%clk 0:02:54]}  Nc6 {[%clk 0:02:51]} 7. Nb3 {[%clk 0:02:51]}  Qc7 {[%clk 0:02:36]} 8. Bg2 {[%clk 0:02:51]}  b6 {[%clk 0:02:36]} 9. Nd4 {[%clk 0:02:46]}  Bb7 {[%clk 0:02:31]} 10. Nb5 {[%clk 0:02:45]}  Qb8 {[%clk 0:02:27]} 11. O-O {[%clk 0:02:44]}  a6 {[%clk 0:02:27]} 12. Nc3 {[%clk 0:02:44]}  Na5 {[%clk 0:02:12]} 13. Nde4 {[%clk 0:02:21]}  Nxe4 {[%clk 0:01:52]} 14. Nxe4 {[%clk 0:02:20]}  f5 {[%clk 0:01:27]} 15. Nd2 {[%clk 0:02:02]}  Bxg2 {[%clk 0:01:27]} 16. Kxg2 {[%clk 0:02:03]}  Qb7+ {[%clk 0:01:27]} 17. Kg1 {[%clk 0:02:02]}  Be7 {[%clk 0:01:24]} 18. b3 {[%clk 0:01:56]}  O-O {[%clk 0:01:23]} 19. Nf3 {[%clk 0:01:55]}  b5 {[%clk 0:01:19]} 20. Bd2 {[%clk 0:01:52]}  Nc6 {[%clk 0:01:16]} 21. Bf4 {[%clk 0:01:52]}  Rad8 {[%clk 0:00:57]} 22. Bd6 {[%clk 0:01:47]}  Bxd6 {[%clk 0:00:37]} 23. Qxd6 {[%clk 0:01:44]}  bxc4 {[%clk 0:00:33]} 24. bxc4 {[%clk 0:01:44]}  Qb8 {[%clk 0:00:33]} 25. Qc5 {[%clk 0:01:30]}  Qc7 {[%clk 0:00:31]} 26. Rfd1 {[%clk 0:01:29]}  d6 {[%clk 0:00:25]} 27. Qa3 {[%clk 0:01:27]}  a5 {[%clk 0:00:21]} 28. Rd2 {[%clk 0:01:19]}  Nb4 {[%clk 0:00:20]} 29. Rc1 {[%clk 0:00:54]}  e5 {[%clk 0:00:19]} 30. Qb3 {[%clk 0:00:37]}  Kh8 {[%clk 0:00:19]} 31. c5 {[%clk 0:00:37]}  dxc5 {[%clk 0:00:14]} 32. Rxd8 {[%clk 0:00:36]}  Qxd8 {[%clk 0:00:13]} 33. Nxe5 {[%clk 0:00:34]}  Qe7 {[%clk 0:00:12]} 34. f4 {[%clk 0:00:30]}  g6 {[%clk 0:00:07]} 35. a3 {[%clk 0:00:28]}  Na6 {[%clk 0:00:07]} 36. Qb6 {[%clk 0:00:28]}  Nb8 {[%clk 0:00:06]} 37. Qxc5 {[%clk 0:00:24]}  Qxc5+ {[%clk 0:00:05]} 38. Rxc5 {[%clk 0:00:25]}  Kg7 {[%clk 0:00:05]} 39. Rxa5 {[%clk 0:00:24]}  Kh6 {[%clk 0:00:05]} 40. Ra7 {[%clk 0:00:19]}  Rc8 {[%clk 0:00:04]} 41. Ra8 {[%clk 0:00:12]}  Rc1+ {[%clk 0:00:04]} 42. Kf2 {[%clk 0:00:12]}  Rb1 {[%clk 0:00:03]} 43. a4 {[%clk 0:00:12]}  Kh5 {[%clk 0:00:02]} 44. a5 {[%clk 0:00:11]}  Rb5 {[%clk 0:00:01]} 45. a6 {[%clk 0:00:11]}  Ra5 {[%clk 0:00:02]} 46. Rxb8 {[%clk 0:00:11]} 1-0


[Site "https://www.chess.com"]

[Event "Titled Tuesday Blitz April 26 Late 2022"]
[White "Demchenko, Anton"]
[Black "Wieczorek, Oskar"]
[WhiteFideId "4160258"]
[BlackFideId "1133950"]
[WhiteElo "2539"]
[BlackElo "2319"]
[Result "1-0"]
[Round "03"]
[TimeControl "180+1"]
[Date "2022.04.26"]
[WhiteClock "0:02:20"]
[BlackClock "0:01:21"]

1. e4 {[%clk 0:03:00]}  c5 {[%clk 0:02:58]} 2. Nf3 {[%clk 0:03:00]}  g6 {[%clk 0:02:59]} 3. c3 {[%clk 0:02:59]}  d5 {[%clk 0:02:58]} 4. exd5 {[%clk 0:02:56]}  Qxd5 {[%clk 0:02:59]} 5. Na3 {[%clk 0:02:56]}  Bg7 {[%clk 0:02:56]} 6. Bc4 {[%clk 0:02:49]}  Qe4+ {[%clk 0:02:55]} 7. Be2 {[%clk 0:02:49]}  Nf6 {[%clk 0:02:54]} 8. O-O {[%clk 0:02:49]}  O-O {[%clk 0:02:54]} 9. Re1 {[%clk 0:02:49]}  Qc6 {[%clk 0:02:49]} 10. d4 {[%clk 0:02:48]}  a6 {[%clk 0:02:47]} 11. Ne5 {[%clk 0:02:45]}  Qb6 {[%clk 0:01:44]} 12. Nac4 {[%clk 0:02:41]}  Qa7 {[%clk 0:01:45]} 13. dxc5 {[%clk 0:02:38]}  Nbd7 {[%clk 0:01:25]} 14. Nxd7 {[%clk 0:02:33]}  Nxd7 {[%clk 0:01:26]} 15. Be3 {[%clk 0:02:33]}  Qb8 {[%clk 0:01:25]} 16. Bf3 {[%clk 0:02:25]}  Qc7 {[%clk 0:01:23]} 17. Nb6 {[%clk 0:02:23]}  Rb8 {[%clk 0:01:22]} 18. Nd5 {[%clk 0:02:21]}  Qd8 {[%clk 0:01:21]} 19. Bg5 {[%clk 0:02:20]} 1-0


[Site "https://www.chess.com"]

[Event "Titled Tuesday Blitz April 26 Late 2022"]
[White "Djokic, Mihailo"]
[Black "Hamley, Ryan"]
[WhiteFideId "976440"]
[BlackFideId "30959497"]
[WhiteElo "2202"]
[BlackElo "2458"]
[Result "0-1"]
[Round "03"]
[TimeControl "180+1"]
[Date "2022.04.26"]
[WhiteClock "0:00:12"]
[BlackClock "0:00:46"]

1. e4 {[%clk 0:03:00]}  c5 {[%clk 0:02:58]} 2. Nf3 {[%clk 0:03:00]}  d6 {[%clk 0:02:59]} 3. d3 {[%clk 0:03:01]}  Nc6 {[%clk 0:02:58]} 4. g3 {[%clk 0:03:00]}  g6 {[%clk 0:02:59]} 5. Bg2 {[%clk 0:03:01]}  Bg7 {[%clk 0:03:00]} 6. O-O {[%clk 0:03:01]}  Nf6 {[%clk 0:02:58]} 7. c3 {[%clk 0:03:01]}  O-O {[%clk 0:02:59]} 8. Re1 {[%clk 0:03:00]}  e5 {[%clk 0:02:58]} 9. Nbd2 {[%clk 0:02:59]}  h6 {[%clk 0:02:54]} 10. a4 {[%clk 0:02:58]}  a6 {[%clk 0:02:52]} 11. Nc4 {[%clk 0:02:57]}  Be6 {[%clk 0:02:51]} 12. Ne3 {[%clk 0:02:57]}  Ne8 {[%clk 0:02:45]} 13. Nd5 {[%clk 0:02:43]}  f5 {[%clk 0:02:41]} 14. Nd2 {[%clk 0:02:39]}  f4 {[%clk 0:02:36]} 15. Nc4 {[%clk 0:02:35]}  g5 {[%clk 0:02:34]} 16. f3 {[%clk 0:02:29]}  h5 {[%clk 0:02:28]} 17. Ncb6 {[%clk 0:02:25]}  Rb8 {[%clk 0:02:25]} 18. Bd2 {[%clk 0:02:16]}  Nf6 {[%clk 0:02:20]} 19. h4 {[%clk 0:02:06]}  Nh7 {[%clk 0:02:01]} 20. hxg5 {[%clk 0:01:23]}  Qxg5 {[%clk 0:01:59]} 21. gxf4 {[%clk 0:01:20]}  exf4 {[%clk 0:02:00]} 22. Qe2 {[%clk 0:01:06]}  Kh8 {[%clk 0:01:53]} 23. Qf2 {[%clk 0:01:03]}  Rg8 {[%clk 0:01:37]} 24. Bxf4 {[%clk 0:00:57]}  Qd8 {[%clk 0:01:33]} 25. Kh1 {[%clk 0:00:37]}  Rf8 {[%clk 0:01:28]} 26. Bg3 {[%clk 0:00:32]}  Ne5 {[%clk 0:01:25]} 27. Rad1 {[%clk 0:00:24]}  Qe8 {[%clk 0:01:14]} 28. Nc7 {[%clk 0:00:21]}  Qg6 {[%clk 0:01:09]} 29. Nxe6 {[%clk 0:00:22]}  Qxe6 {[%clk 0:01:10]} 30. Nd5 {[%clk 0:00:22]}  Qd7 {[%clk 0:01:05]} 31. f4 {[%clk 0:00:15]}  Ng4 {[%clk 0:01:04]} 32. Qe2 {[%clk 0:00:13]}  Qxa4 {[%clk 0:01:03]} 33. Bh3 {[%clk 0:00:10]}  Nhf6 {[%clk 0:01:02]} 34. Nxf6 {[%clk 0:00:09]}  Nxf6 {[%clk 0:01:02]} 35. e5 {[%clk 0:00:08]}  dxe5 {[%clk 0:01:03]} 36. fxe5 {[%clk 0:00:07]}  Ng4 {[%clk 0:01:04]} 37. Qe4 {[%clk 0:00:05]}  Qxe4+ {[%clk 0:01:01]} 38. Rxe4 {[%clk 0:00:04]}  Rf3 {[%clk 0:01:02]} 39. Kg2 {[%clk 0:00:03]}  Ne3+ {[%clk 0:00:43]} 40. Kxf3 {[%clk 0:00:02]}  Nxd1 {[%clk 0:00:44]} 41. Re1 {[%clk 0:00:02]}  Nxb2 {[%clk 0:00:44]} 42. d4 {[%clk 0:00:01]}  cxd4 {[%clk 0:00:43]} 43. cxd4 {[%clk 0:00:02]}  Rd8 {[%clk 0:00:43]} 44. Bf2 {[%clk 0:00:01]}  Nd3 {[%clk 0:00:42]} 45. Rd1 {[%clk 0:00:02]}  Nxf2 {[%clk 0:00:42]} 46. Kxf2 {[%clk 0:00:03]}  Bxe5 {[%clk 0:00:42]} 47. d5 {[%clk 0:00:03]}  Rd6 {[%clk 0:00:42]} 48. Be6 {[%clk 0:00:03]}  Kg7 {[%clk 0:00:42]} 49. Rg1+ {[%clk 0:00:04]}  Kf6 {[%clk 0:00:42]} 50. Rg8 {[%clk 0:00:04]}  b5 {[%clk 0:00:42]} 51. Rf8+ {[%clk 0:00:05]}  Kg7 {[%clk 0:00:42]} 52. Rf7+ {[%clk 0:00:05]}  Kg6 {[%clk 0:00:42]} 53. Ra7 {[%clk 0:00:05]}  Bd4+ {[%clk 0:00:42]} 54. Kf3 {[%clk 0:00:05]}  Bxa7 {[%clk 0:00:43]} 55. Ke4 {[%clk 0:00:05]}  Kf6 {[%clk 0:00:43]} 56. Bh3 {[%clk 0:00:04]}  Bc5 {[%clk 0:00:42]} 57. Bg2 {[%clk 0:00:05]}  Rd8 {[%clk 0:00:43]} 58. Kd3 {[%clk 0:00:06]}  Bd6 {[%clk 0:00:43]} 59. Kd4 {[%clk 0:00:06]}  Rg8 {[%clk 0:00:44]} 60. Be4 {[%clk 0:00:06]}  Rg4 {[%clk 0:00:44]} 61. Ke3 {[%clk 0:00:07]}  Ke5 {[%clk 0:00:45]} 62. Bf3 {[%clk 0:00:07]}  Rg3 {[%clk 0:00:45]} 63. Kf2 {[%clk 0:00:07]}  Rxf3+ {[%clk 0:00:44]} 64. Kxf3 {[%clk 0:00:08]}  Kxd5 {[%clk 0:00:45]} 65. Kg2 {[%clk 0:00:08]}  b4 {[%clk 0:00:46]} 66. Kh3 {[%clk 0:00:09]}  b3 {[%clk 0:00:46]} 67. Kh4 {[%clk 0:00:10]}  b2 {[%clk 0:00:47]} 68. Kg5 {[%clk 0:00:11]}  b1=Q {[%clk 0:00:47]} 69. Kf6 {[%clk 0:00:12]}  a5 {[%clk 0:00:46]} 0-1


[Site "https://www.chess.com"]

[Event "Titled Tuesday Blitz April 26 Late 2022"]
[White "February, Jesse Nikki"]
[Black "Kostiukov, Alexandr"]
[WhiteFideId "14312336"]
[BlackFideId "14108100"]
[WhiteElo "1824"]
[BlackElo "2202"]
[Result "0-1"]
[Round "03"]
[TimeControl "180+1"]
[Date "2022.04.26"]
[WhiteClock "0:00:02"]
[BlackClock "0:00:24"]

1. e4 {[%clk 0:03:00]}  c5 {[%clk 0:02:59]} 2. Nf3 {[%clk 0:03:00]}  g6 {[%clk 0:02:58]} 3. d4 {[%clk 0:02:59]}  cxd4 {[%clk 0:02:59]} 4. Nxd4 {[%clk 0:02:59]}  Bg7 {[%clk 0:02:59]} 5. c4 {[%clk 0:03:00]}  Nc6 {[%clk 0:02:56]} 6. Be3 {[%clk 0:02:57]}  Nf6 {[%clk 0:02:56]} 7. Nc3 {[%clk 0:02:56]}  O-O {[%clk 0:02:56]} 8. Be2 {[%clk 0:02:49]}  Nxd4 {[%clk 0:02:55]} 9. Bxd4 {[%clk 0:02:42]}  Qa5 {[%clk 0:02:56]} 10. O-O {[%clk 0:02:30]}  d6 {[%clk 0:02:56]} 11. Nd5 {[%clk 0:01:55]}  Nxe4 {[%clk 0:02:05]} 12. Nxe7+ {[%clk 0:01:51]}  Kh8 {[%clk 0:02:05]} 13. Bxg7+ {[%clk 0:01:27]}  Kxg7 {[%clk 0:02:06]} 14. Bf3 {[%clk 0:01:20]}  Nd2 {[%clk 0:01:46]} 15. Bd5 {[%clk 0:00:56]}  Nxf1 {[%clk 0:01:37]} 16. Qd4+ {[%clk 0:00:42]}  f6 {[%clk 0:01:37]} 17. Rxf1 {[%clk 0:00:41]}  Qc5 {[%clk 0:01:25]} 18. Qe4 {[%clk 0:00:35]}  Bd7 {[%clk 0:01:02]} 19. Re1 {[%clk 0:00:25]}  Rae8 {[%clk 0:01:00]} 20. Qh4 {[%clk 0:00:23]}  Bc6 {[%clk 0:00:39]} 21. g4 {[%clk 0:00:16]}  Bxd5 {[%clk 0:00:38]} 22. cxd5 {[%clk 0:00:16]}  Qc7 {[%clk 0:00:31]} 23. g5 {[%clk 0:00:12]}  Rxe7 {[%clk 0:00:29]} 24. gxf6+ {[%clk 0:00:10]}  Rxf6 {[%clk 0:00:30]} 25. Rd1 {[%clk 0:00:08]}  Ref7 {[%clk 0:00:28]} 26. Rd3 {[%clk 0:00:04]}  Qc1+ {[%clk 0:00:27]} 27. Kg2 {[%clk 0:00:04]}  Rxf2+ {[%clk 0:00:26]} 28. Kh3 {[%clk 0:00:02]}  Qf1+ {[%clk 0:00:24]} 0-1


[Site "https://www.chess.com"]

[Event "Titled Tuesday Blitz April 26 Late 2022"]
[White "Harshavardhan G B"]
[Black "Moraes, Nelson da Silva"]
[WhiteFideId "25059009"]
[BlackFideId "2140772"]
[WhiteElo "1831"]
[BlackElo "2123"]
[Result "0-1"]
[Round "03"]
[TimeControl "180+1"]
[Date "2022.04.26"]
[WhiteClock "0:01:16"]
[BlackClock "0:02:21"]

1. e4 {[%clk 0:03:00]}  e6 {[%clk 0:02:59]} 2. d4 {[%clk 0:02:56]}  d5 {[%clk 0:03:00]} 3. Nc3 {[%clk 0:02:54]}  Nf6 {[%clk 0:03:00]} 4. e5 {[%clk 0:02:52]}  Nfd7 {[%clk 0:03:00]} 5. f4 {[%clk 0:02:52]}  c5 {[%clk 0:02:59]} 6. Nf3 {[%clk 0:02:52]}  Nc6 {[%clk 0:02:59]} 7. Be3 {[%clk 0:02:53]}  Be7 {[%clk 0:02:58]} 8. Qd2 {[%clk 0:02:52]}  O-O {[%clk 0:02:57]} 9. dxc5 {[%clk 0:02:51]}  Nxc5 {[%clk 0:02:56]} 10. O-O-O {[%clk 0:02:50]}  b6 {[%clk 0:02:51]} 11. h4 {[%clk 0:02:46]}  Bb7 {[%clk 0:02:44]} 12. Kb1 {[%clk 0:02:44]}  Rc8 {[%clk 0:02:40]} 13. h5 {[%clk 0:02:42]}  Ne4 {[%clk 0:02:37]} 14. Nxe4 {[%clk 0:02:40]}  dxe4 {[%clk 0:02:38]} 15. Qxd8 {[%clk 0:02:16]}  Rfxd8 {[%clk 0:02:37]} 16. Rxd8+ {[%clk 0:02:00]}  Rxd8 {[%clk 0:02:38]} 17. Nd2 {[%clk 0:01:59]}  Nd4 {[%clk 0:02:35]} 18. g4 {[%clk 0:01:32]}  Nf3 {[%clk 0:02:31]} 19. Kc1 {[%clk 0:01:31]}  Nxd2 {[%clk 0:02:29]} 20. Bxd2 {[%clk 0:01:30]}  e3 {[%clk 0:02:30]} 21. Rh2 {[%clk 0:01:31]}  exd2+ {[%clk 0:02:29]} 22. Rxd2 {[%clk 0:01:31]}  Rxd2 {[%clk 0:02:28]} 23. Kxd2 {[%clk 0:01:32]}  f6 {[%clk 0:02:27]} 24. a3 {[%clk 0:01:17]}  fxe5 {[%clk 0:02:26]} 25. fxe5 {[%clk 0:01:18]}  Bg5+ {[%clk 0:02:25]} 26. Kd3 {[%clk 0:01:16]}  Bf3 {[%clk 0:02:25]} 27. Be2 {[%clk 0:01:14]}  Bxe2+ {[%clk 0:02:24]} 28. Kxe2 {[%clk 0:01:15]}  Bc1 {[%clk 0:02:23]} 29. b4 {[%clk 0:01:13]}  Bxa3 {[%clk 0:02:24]} 30. b5 {[%clk 0:01:14]}  Bb2 {[%clk 0:02:23]} 31. Kd3 {[%clk 0:01:15]}  Bxe5 {[%clk 0:02:24]} 32. Ke4 {[%clk 0:01:15]}  Bb2 {[%clk 0:02:21]} 33. c4 {[%clk 0:01:16]}  Kf8 {[%clk 0:02:21]} 34. g5 {[%clk 0:01:15]}  Ke7 {[%clk 0:02:21]} 35. g6 {[%clk 0:01:15]}  hxg6 {[%clk 0:02:21]} 36. hxg6 {[%clk 0:01:16]}  Kf6 {[%clk 0:02:21]} 0-1


[Site "https://www.chess.com"]

[Event "Titled Tuesday Blitz April 26 Late 2022"]
[White "Hernandez Bermudez, Ulises Eduardo"]
[Black "Atanejhad, Sahebali"]
[WhiteFideId "3902510"]
[BlackFideId "12506664"]
[WhiteElo "2056"]
[BlackElo "1953"]
[Result "0-1"]
[Round "03"]
[TimeControl "180+1"]
[Date "2022.04.26"]
[WhiteClock "0:01:52"]
[BlackClock "0:02:41"]

1. e4 {[%clk 0:03:00]}  c5 {[%clk 0:02:59]} 2. c3 {[%clk 0:03:00]}  d5 {[%clk 0:02:58]} 3. exd5 {[%clk 0:03:00]}  Qxd5 {[%clk 0:02:59]} 4. d4 {[%clk 0:03:01]}  Nc6 {[%clk 0:03:00]} 5. Nf3 {[%clk 0:03:01]}  cxd4 {[%clk 0:03:00]} 6. cxd4 {[%clk 0:03:00]}  e5 {[%clk 0:03:00]} 7. Nc3 {[%clk 0:03:00]}  Bb4 {[%clk 0:03:01]} 8. Bd2 {[%clk 0:03:00]}  Bxc3 {[%clk 0:03:01]} 9. Bxc3 {[%clk 0:03:01]}  e4 {[%clk 0:03:01]} 10. Ne5 {[%clk 0:03:02]}  Nxe5 {[%clk 0:03:01]} 11. dxe5 {[%clk 0:03:02]}  Ne7 {[%clk 0:03:02]} 12. Qxd5 {[%clk 0:02:53]}  Nxd5 {[%clk 0:03:03]} 13. Bb5+ {[%clk 0:02:53]}  Bd7 {[%clk 0:03:02]} 14. Bxd7+ {[%clk 0:02:52]}  Kxd7 {[%clk 0:03:03]} 15. O-O-O {[%clk 0:02:51]}  Ke6 {[%clk 0:03:03]} 16. Bd4 {[%clk 0:02:49]}  Rac8+ {[%clk 0:03:00]} 17. Kb1 {[%clk 0:02:50]}  Rc4 {[%clk 0:03:00]} 18. Rd2 {[%clk 0:02:38]}  Rhc8 {[%clk 0:02:59]} 19. Bxa7 {[%clk 0:02:38]}  b6 {[%clk 0:02:57]} 20. Rhd1 {[%clk 0:02:37]}  R4c5 {[%clk 0:02:55]} 21. b4 {[%clk 0:02:32]}  Rb5 {[%clk 0:02:48]} 22. a3 {[%clk 0:02:06]}  Ra8 {[%clk 0:02:45]} 23. Bxb6 {[%clk 0:02:03]}  Nxb6 {[%clk 0:02:43]} 24. Rd6+ {[%clk 0:02:03]}  Kxe5 {[%clk 0:02:43]} 25. f4+ {[%clk 0:01:52]}  exf3 {[%clk 0:02:41]} 0-1


[Site "https://www.chess.com"]